Cogmind - Beta 16.1 @@@ ROGUE MODE // 2026.04.28 @ 17:11:15 Player: the Result: Destroyed by Lightning with EMDS Performance ------------- Evolutions (4) 2000 Regions Visited (10) 2000 Robots Destroyed (201) 1005 Value Destroyed (7078) 7078 Prototype IDs (39) 780 Alien Tech Used (0) 0 Bonus (2842) 2842 TOTAL SCORE: 15705 Bonus ------- High Alert Combat Kills 1719 Follower Combat Kills 2110 Network Hubs Disabled 400 Built Enhanced Grunts 300 Met R17 at Cetus 500 Friendly Fire -2187 Cogmind --------- Core Integrity 0/850 Matter 300/300 Energy 1617/1617 System Corruption 15% Temperature Warm (108) Movement Hovering (177) Ox2 Location -6/Hub_04(d) Parts ------- > --- POWER (2) -------- Multi-FC Engine > --- PROPULSION (4) --- Hovering Aerolev-NPT Exoskeleton > --- UTILITY (6) ------ Armored Scrap Engine Experimental Heat Sink Improved Cooling System > --- WEAPON (3) ------- Hvy. Ballistic Penetrator Construct/C > --- INVENTORY (5) ---- Enhanced Optical Array Advanced Sensor Array Peak State ------------ > --- POWER ------------ Multi-FC Engine > --- PROPULSION ------- Arachnoskeleton Hovering Aerolev-NPT Exoskeleton > --- UTILITY ---------- Armored Scrap Engine Advanced Signal Interpreter Seismic Detector Advanced Targeting Computer Improved Weapon Shielding > --- WEAPON ----------- Hvy. Ballistic Penetrator Construct/C > --- INVENTORY -------- Enhanced Optical Array Advanced Sensor Array Gatling Laser Flak Cannon [Rating: 94] Favorites ----------- Power Constructs Engine Constructs Power Core Light Nuclear Core Propulsion Constructs Treads Light Treads Leg Arachnoskeleton Wheel Armored Wheel Hover Unit Constructs Utility Seismic Detector Device Seismic Detector Processor Advanced Targeting Computer Hackware Advanced Hacking Suite Protection Improved Weapon Shielding Weapon Constructs Energy Gun Advanced Beam Rifle Energy Cannon Beam Cannon Ballistic Gun Barrage Gun Ballistic Cannon Constructs Launcher Grenade Launcher Special Weapon Mining Laser Slashing Weapon Ripper Build | -11 -10 -10 -8 -8 -8 -6 -6 -6 -6 -6 ------- Run | Yrd Mat Sub Mat Sto Rec Fac Ext Cet Arc Hub Slots Evolved 8 | . . . 4 . . 4 . . . . Power 1 | . . . 1 . . . . . . . Propulsion 2 | . . . 1 . . 1 . . . . Utility 4 | . . . 1 . . 3 . . . . Weapon 1 | . . . 1 . . . . . . . Parts Attached 81 | 7 1 9 19 14 5 14 2 1 4 5 Power 12 | 1 . 1 5 5 . . . . . . Engine 10 | 1 . 1 3 5 . . . . . . Core 2 | . . . 2 . . . . . . . Reactor . | . . . . . . . . . . . Propulsion 9 | 2 . 1 6 . . . . . . . Treads 5 | 2 . . 3 . . . . . . . Leg 1 | . . . 1 . . . . . . . Wheel 2 | . . . 2 . . . . . . . Hover 1 | . . 1 . . . . . . . . Flight . | . . . . . . . . . . . Utility 30 | 2 . 2 2 . 2 10 2 1 4 5 Device 19 | 2 . 2 . . 2 7 2 . 3 1 Storage . | . . . . . . . . . . . Processor 3 | . . . . . . 3 . . . . Hackware 4 | . . . 1 . . . . . 1 2 Protection 4 | . . . 1 . . . . 1 . 2 Artifact . | . . . . . . . . . . . Weapon 30 | 2 1 5 6 9 3 4 . . . . Energy Gun 10 | . . . 3 6 . 1 . . . . Energy Cannon 4 | . . 1 . 1 1 1 . . . . Ballistic Gun 7 | 2 . 3 . 1 . 1 . . . . Ballistic Cannon 4 | . . . 2 . 2 . . . . . Launcher 3 | . . . 1 1 . 1 . . . . Special Weapon 1 | . 1 . . . . . . . . . Impact Weapon . | . . . . . . . . . . . Slashing Weapon 1 | . . 1 . . . . . . . . Piercing Weapon . | . . . . . . . . . . . Special Melee Weapon . | . . . . . . . . . . . Unidentified Prototypes 18 | . . . 1 10 1 3 . 1 . 2 Corrupted Parts 1 | . . . . . . . . . . 1 System Corruption 10 | . . . . . . . . . . 10 Parts Lost 14 | . . 4 1 . . 4 . . . 5 Power 1 | . . 1 . . . . . . . . Propulsion 4 | . . 2 . . . . . . . 2 Utility 5 | . . . . . . 2 . . . 3 Weapon 4 | . . 1 1 . . 2 . . . . Highest Loss Streak 5 | . . 2 1 . . 2 . . . 5 To Critical Strikes 1 | . . . . . . . . . . 1 Average Backups 4 | 1 4 4 4 4 4 3 5 4 4 4 Power . | . . . . . . . . . . . Propulsion . | . . . . 1 . . . . . . Utility 2 | . . 2 . . 1 1 2 3 3 3 Weapon 2 | 1 3 2 2 3 2 2 2 1 1 . Tool/Special . | . . . . . . . . . . . Unused Backups 37 | . 2 1 7 . 4 15 1 3 2 2 Power 2 | . 1 . . . . 1 . . . . Propulsion 4 | . . . . . 2 2 . . . . Utility 8 | . . . 2 . . 3 . 1 1 1 Weapon 23 | . 1 1 5 . 2 9 1 2 1 1 Tool/Special . | . . . . . . . . . . . Average Slot Usage (%) 64 | . 100 85 73 84 50 50 52 53 52 52 Engine 6 | . 14 10 4 10 4 3 6 1 2 3 Core 1 | . . . 4 2 3 2 . 4 3 2 Treads 7 | . 28 16 12 21 3 . . . . . Leg 2 | . . . 5 7 7 5 1 . . . Hover 2 | . . 3 . . . 1 . 4 6 6 Device 20 | . 28 28 14 14 14 16 19 20 19 11 Processor 5 | . . . . . . 11 13 13 13 11 Energy Gun 2 | . . . 7 20 8 1 . . . . Energy Cannon 1 | . . . . . . 2 5 3 . . Ballistic Gun 6 | . 27 20 . . . . . . . . Ballistic Cannon 1 | . . . 5 . 1 1 . 2 6 6 Slashing Weapon 1 | . . 3 5 . . . . . . . Peak Build Rating 94 | 9 9 15 54 54 66 94 80 84 92 90 Average Rating 52 | 5 9 12 40 53 57 73 79 77 87 88 On Entrance 47 | . 9 9 10 54 54 63 76 79 84 88 Avg Prop Armor Cover (%) 14 | . . . 16 20 12 17 . . . . Naked Turns . | . . . . . . . . . . . Heaviest Build 60 | 10 10 13 21 28 32 45 41 43 59 60 Greatest Support 123 | 40 40 40 50 50 50 123 46 46 46 46 Greatest Overweight (x) 3 | . . 3 3 . . . . . 1 1 Average Overweight (x) . | . . . . . . . . . . 1 Largest Inventory Capacity 5 | 5 5 5 5 5 5 5 5 5 5 5 Average Capacity 5 | 5 5 5 5 5 5 5 5 5 5 5 Most Carried 5 | 4 5 5 5 5 5 5 5 5 5 5 Average Carried 4 | 1 4 4 4 4 4 3 5 4 4 4 Final Capacity 5 | 5 5 5 5 5 5 5 5 5 5 5 Final Carried 5 | 3 5 5 5 5 5 5 5 5 5 2 Scrap Engine Consumption 143 | . . . . . 46 61 7 8 8 13 Constructs Created 4 | . . . . . 3 1 . . . . Constructs Modified 62 | . . . . . 20 25 3 6 6 2 Class Distribution -------------------- 44% | Mutant 28% | Commander-Construct 18% | Construct 4% | Tank Dominant Class ---------------- Mutant | -10/Materials Mutant | -10/Subcaves Scavenger-Mutant | -8/Materials Tank | -8/Storage Construct | -8/Recycling Construct | -6/Factory Commander-Construct | -6/Extension Commander-Construct | -6/Cetus Commander-Construct | -6/Archives Commander-Construct | -6/Hub_04(d) Resources | -11 -10 -10 -8 -8 -8 -6 -6 -6 -6 -6 ----------- Run | Yrd Mat Sub Mat Sto Rec Fac Ext Cet Arc Hub Matter Collected 2576 | 313 24 352 508 208 110 361 384 141 85 90 Remotely . | . . . . . . . . . . . Salvage Created 9960 | 176 76 411 786 444 801 2556 1480 179 584 2467 Parts 435 | 15 8 18 40 16 33 99 50 12 41 103 Haulers Intercepted 15 | . . . 4 2 1 3 1 . . 4 Recyclers Shooed 10 | . . . 2 2 1 4 1 . . . Parts Field Recycled . | . . . . . . . . . . . Retrieved Matter . | . . . . . . . . . . . Parts Self-Destructed 18 | . . 18 . . . . . . . . Prevented . | . . . . . . . . . . . Parts Restored . | . . . . . . . . . . . Kills | -11 -10 -10 -8 -8 -8 -6 -6 -6 -6 -6 ------- Run | Yrd Mat Sub Mat Sto Rec Fac Ext Cet Arc Hub Combat Hostiles Destroyed 120 | . 3 9 12 3 13 37 15 2 3 23 Melee 2 | . . . 2 . . . . . . . Guns 24 | . 3 8 1 3 9 . . . . . Cannons 75 | . . 1 3 . 4 28 12 1 3 23 AOE 8 | . . . 6 . . 2 . . . . Classes Destroyed 19 | 3 3 2 4 . 2 3 1 . . 1 Worker 12 | 2 . . . 1 . 5 . . . 4 Builder 8 | . . . 3 . . 2 . . . 3 Tunneler 10 | 5 . . 1 . . 1 . . . 3 Hauler 15 | . . . 4 2 1 3 1 . . 4 Recycler 12 | 1 . . 3 2 1 1 3 . . 1 Mechanic 2 | . . . 1 . . . . . . 1 Operator 11 | . 1 . . . . . 1 . 9 . Watcher 5 | . 1 . . . . 1 1 . . 2 Swarmer 14 | . 3 . 3 . 1 4 2 . . 1 Grunt 47 | . . 2 7 . 2 16 5 . . 15 Brawler 5 | . . . . . . 4 . . . 1 Duelist 4 | . . . . . . 2 . . . 2 Sentry 19 | . . . 2 3 . 4 6 . 3 1 Demolisher 1 | . . . . . 1 . . . . . Hunter 1 | . . . . . . 1 . . . . Programmer 7 | . . . . . 1 6 . . . . Heavy 1 | . . . . . . . . . . 1 Behemoth 2 | . . . . . . . 2 . . . Cetus Guard 2 | . . . . . . . . 2 . . Enhanced Grunt 2 | . . . . . . . . . . 2 Lightning 2 | . . . . . . . . . . 2 Subdweller 15 | . . 7 . . 8 . . . . . Savage 2 | . . . . . . . 1 . . 1 Butcher 1 | . . . . . . . . . 1 . Best Kill Streak 17 | 5 3 3 5 1 4 8 4 1 6 17 Combat Bots Only 11 | . 3 3 4 1 4 4 3 1 3 11 Max Kills in Single Turn 4 | 1 1 1 2 1 1 4 1 1 2 2 Gunslinging . | . . . . . . . . . . . Exploded 2 | . . . 2 . . 2 . . . . Melee 1 | . . . 1 . . . . . . . Uniques/NPCs Destroyed 1 | . . . . . . . . 1 . . A7 (-6/Cetus) Combat | -11 -10 -10 -8 -8 -8 -6 -6 -6 -6 -6 -------- Run | Yrd Mat Sub Mat Sto Rec Fac Ext Cet Arc Hub Hostile Shots Fired 613 | . 12 49 40 8 12 226 113 11 . 142 Missed 219 | . 6 18 10 3 5 80 51 5 . 41 Hits 394 | . 6 31 30 5 7 146 62 6 . 101 Melee 6 | . . . . . . 1 . . . 5 Projectile 388 | . 6 31 30 5 7 145 62 6 . 96 AOE 1 | . . . . . . . . . . 1 Critical Strikes 22 | . . . 1 . . 9 2 2 . 8 Actively Blocked 1 | . . . . . . . . . . 1 Damage Taken 6914 | . 43 755 456 146 130 2289 568 173 . 2354 Core 1120 | . . 126 125 . 19 350 60 50 . 390 Absorbed by Shields 295 | . . . . . . . 258 37 . . Redirected to Shielding 427 | . . . . 12 . 90 . . . 325 Regen/Repaired (Parts) 2024 | . . . . . . 1066 421 464 30 43 Core Remaining (%) 74 | 100 . 49 . . 73 . . . . . Volleys Fired 628 | 12 11 37 42 16 58 196 109 26 31 90 Largest 3 | 2 2 2 3 3 3 1 1 1 1 1 Hottest 183 | 40 100 80 183 183 183 124 124 105 148 148 Shots Fired 758 | 24 20 71 74 36 84 194 108 26 31 90 Gun 257 | 24 18 69 33 35 56 22 . . . . Cannon 486 | . . 2 29 . 28 172 108 26 31 90 Launcher 13 | . . . 12 1 . . . . . . Special 2 | . 2 . . . . . . . . . Kinetic 413 | 24 18 69 29 . 31 113 13 2 24 90 Thermal 245 | . 2 2 33 35 53 3 95 15 7 . Explosive 12 | . . . 12 . . . . . . . Electromagnetic 88 | . . . . 1 . 78 . 9 . . Robot Hit Streak 20 | 6 5 20 8 10 8 16 9 5 9 7 Robot Miss Streak 5 | 3 2 2 5 1 5 3 2 2 3 4 Penetration Max 1 | . . . . . . . 1 . 1 1 Secondary Targets 5 | . 1 2 . . 2 . . . . . Max Gunslinging Chain 1 | . 1 1 . . 1 . . . . . Shots Hit Robots 481 | 15 10 57 57 20 46 126 62 17 17 54 Core Hits 248 | 8 6 19 34 9 23 76 17 9 10 37 Critical Kills 7 | . . . . . . . 1 . 1 5 Critical Parts Destroyed 6 | . . . . . . . 2 . 1 3 Critical Strikes 20 | . . . 4 2 . . 3 . 3 8 Burn 5 | . . . 3 2 . . . . . . Destroy 14 | . . . . . . . 3 . 3 8 Blast 1 | . . . 1 . . . . . . . Melee Attacks 27 | . . 4 23 . . . . . . . Impact . | . . . . . . . . . . . Slashing 27 | . . 4 23 . . . . . . . Piercing . | . . . . . . . . . . . Sneak Attacks 8 | . . . 8 . . . . . . . Combat Hostiles . | . . . . . . . . . . . Follow-up Attacks . | . . . . . . . . . . . Damage Inflicted 27753 | 197 103 829 2164 394 1023 5951 4580 1244 2280 8988 Guns 2854 | 192 103 793 440 378 546 402 . . . . Cannons 22128 | . . 36 427 . 363 4394 4580 1244 2280 8804 Explosions 1905 | . . . 565 . 87 1069 . . . 184 Melee 732 | . . . 732 . . . . . . . Ramming 134 | 5 . . . 16 27 86 . . . . Kinetic 15345 | 192 103 793 427 . 363 2723 500 . 1440 8804 Thermal 8309 | . . 36 440 378 546 1069 4080 920 840 . Explosive 652 | . . . 565 . 87 . . . . . Electromagnetic 2581 | . . . . . . 2073 . 324 . 184 Impact . | . . . . . . . . . . . Slashing 732 | . . . 732 . . . . . . . Piercing . | . . . . . . . . . . . Highest Corruption 15 | . . . . . . 8 9 9 9 15 Average Corruption 7 | . . . . . . 5 8 9 6 5 Corruption Purged 9 | . . . . . . . . . 9 . Corruption Blocked . | . . . . . . . . . . . Effects 96 | . . . . . . 35 38 17 4 2 Message Errors 33 | . . . . . . 10 16 5 . 2 Matter Fused 22 | . . . . . . 10 7 4 1 . Heat Flow Errors 9 | . . . . . . 3 4 2 . . Energy Discharges 12 | . . . . . . 6 1 5 . . Parts Rejected 2 | . . . . . . . 1 . 1 . Parts Fused 1 | . . . . . . . 1 . . . Data Loss (minor) 8 | . . . . . . 3 4 1 . . Data Loss (major) 5 | . . . . . . 1 2 . 2 . Alerts 1 | . . . . . . . 1 . . . Weapon Failures 3 | . . . . . . 2 1 . . . Overload Shots . | . . . . . . . . . . . Overflow Damage 2700 | . . . 94 . 27 408 468 . 579 1124 Projectiles 2398 | . . . . . 27 200 468 . 579 1124 Explosions 212 | . . . 4 . . 208 . . . . Melee 90 | . . . 90 . . . . . . . Knockbacks 66 | . . . 7 . 4 27 . . 3 25 Impact 1 | . . . . . . 1 . . . . Kinetic 53 | . . . 7 . 4 20 . . 3 19 Secondary 12 | . . . . . . 6 . . . 6 Self-Inflicted Damage 163 | . . . . 66 . . . . . 97 Shots 4 | . . . . 3 . . . . . 1 Rammed 1 | 1 . . . . . . . . . . Targets Rammed 22 | 3 . . . 2 3 14 . . . . Kicked 19 | . . . . 2 3 14 . . . . Crushed 2 | 2 . . . . . . . . . . Highest Temperature 341 | . 40 . 197 197 194 310 258 214 232 341 Average Temperature 94 | . 20 . 89 77 58 103 70 90 92 124 Received Heat Transfer 1582 | . . 150 252 36 39 561 160 . . 384 Effects 9 | . . . . . . 8 . . . 1 Energy Bleed 5 | . . . . . . 5 . . . . Interference 4 | . . . . . . 3 . . . 1 Siege Activations . | . . . . . . . . . . . Martial Activations . | . . . . . . . . . . . Shielding Activations . | . . . . . . . . . . . Robots Disrupted . | . . . . . . . . . . . Combat Hostiles . | . . . . . . . . . . . Robots Corrupted 13 | . . . . . . 8 . 1 . 4 Combat Hostiles 8 | . . . . . . 7 . 1 . . Parts Fried 27 | . . . . . . 23 . . . 4 Impact Corruptions 2 | . . . . . . . . . . 2 Robots Melted 3 | . . . . . . . 3 . . . Combat Hostiles 3 | . . . . . . . 3 . . . Parts Melted 13 | . . 1 1 4 1 . 6 . . . Heat Transferred 7561 | . . 74 1036 888 1024 800 2925 555 259 . Parts Sabotaged . | . . . . . . . . . . . Parts Stolen . | . . . . . . . . . . . Parts Stripped . | . . . . . . . . . . . Power Chain Reactions 5 | . . . . 3 . 1 . . . 1 Alert | -11 -10 -10 -8 -8 -8 -6 -6 -6 -6 -6 ------- Run | Yrd Mat Sub Mat Sto Rec Fac Ext Cet Arc Hub Maximum Alert Level 5 | . . . 1 1 . 3 4 3 2 5 Low Security (%) 48 | 100 100 . 37 93 100 31 . . 61 9 Level 1 15 | . . . 62 6 . 8 24 . 33 1 Level 2 22 | . . . . . . 45 54 59 5 24 Level 3 8 | . . . . . . 14 18 40 . 9 Level 4 3 | . . . . . . . 1 . . 41 Level 5 1 | . . . . . . . . . . 14 High Security . | . . . . . . . . . . . Max Security . | . . . . . . . . . . . Peak Influence 2052 | 10 60 . 305 220 82 826 1145 795 413 2052 Initial 637 | . 6 . . 118 81 165 398 637 270 . Average 339 | 3 20 . 198 141 18 403 545 698 174 1073 Influence Increases 7414 | 40 84 50 565 242 195 1553 1485 349 301 2550 Destroy 0b10 Robot/C 3060 | . 60 40 240 60 100 740 620 160 80 960 Destroy 0b10 Robot/NC 415 | 40 10 . 60 25 20 65 30 10 45 110 Destroy Leader 568 | . 12 10 48 34 . 168 62 . . 234 Allied During Kill 1710 | . . . . . . . 591 167 125 827 Successful Hack 103 | . . . 7 7 13 23 11 . . 42 Select Force Hacks 90 | . . . . 60 30 . . . . . Disable Machine 495 | . . . 15 45 15 105 120 . 30 165 Destroy Structure 448 | . 2 . 60 11 17 77 51 12 21 197 Advance Influence 150 | . . . . . . 150 . . . . Lose Combat Pursuer 375 | . . . 135 . . 225 . . . 15 Influence Decreases 5380 | 30 77 67 285 312 367 777 1160 812 977 516 Entered New Map 1651 | . 4 9 . 162 129 23 416 502 406 . Time Decay 2919 | 30 73 48 275 150 238 564 434 230 531 346 Lost Part 110 | . . 10 10 . . 40 . . . 50 Lost Ally 400 | . . . . . . . 160 80 40 120 Purge Threat 300 | . . . . . . 150 150 . . . Squads Dispatched 33 | . 1 . 1 2 . 14 2 . . 13 Investigation 10 | . . . . 2 . 3 . . . 5 Extermination 6 | . . . . . . 5 . . . 1 Reinforcement 12 | . 1 . 1 . . 4 2 . . 4 Assault 5 | . . . . . . 2 . . . 3 Garrison . | . . . . . . . . . . . Intercept . | . . . . . . . . . . . Searches Triggered . | . . . . . . . . . . . Construction Impeded 4 | . . . 1 . . 2 1 . . . Haulers Reinforced 4 | . . . . . . 2 . . . 2 Active Scanning Responses . | . . . . . . . . . . . Cargo Convoy Interrupts . | . . . . . . . . . . . Stealth | -11 -10 -10 -8 -8 -8 -6 -6 -6 -6 -6 --------- Run | Yrd Mat Sub Mat Sto Rec Fac Ext Cet Arc Hub Distress Signals 17 | . . . 4 1 1 2 2 2 . 5 Communications Jammed 1 | . . . . . . 1 . . . . Distress Signals 1 | . . . . . . 1 . . . . Times Spotted 215 | . 7 13 21 5 7 50 30 11 13 58 Peak Tracking Total 10 | . 3 3 5 2 2 7 5 5 1 10 Tactical Retreats 16 | . . 1 5 . . 9 . . . 1 Traps | -11 -10 -10 -8 -8 -8 -6 -6 -6 -6 -6 ------- Run | Yrd Mat Sub Mat Sto Rec Fac Ext Cet Arc Hub Traps Triggered 12 | . . 3 . . . 5 3 . . 1 Indirectly . | . . . . . . . . . . . Trap Hack Attempts . | . . . . . . . . . . . Triggered . | . . . . . . . . . . . Disarmed . | . . . . . . . . . . . Reprogrammed . | . . . . . . . . . . . Reused . | . . . . . . . . . . . Traps Extracted . | . . . . . . . . . . . Installed . | . . . . . . . . . . . Triggered . | . . . . . . . . . . . Machines | -11 -10 -10 -8 -8 -8 -6 -6 -6 -6 -6 ---------- Run | Yrd Mat Sub Mat Sto Rec Fac Ext Cet Arc Hub Machines Disabled 36 | . . 1 1 3 1 7 10 . 2 11 Max in Single Turn 5 | . . 1 1 2 1 4 1 . 1 5 Garrison Access 2 | . . . . . . 2 . . . . Network Hub 2 | . . . . . . . . . . 2 Machines Repaired . | . . . . . . . . . . . Machines Dismantled . | . . . . . . . . . . . Machines Sabotaged . | . . . . . . . . . . . Overloaded Fab Kills . | . . . . . . . . . . . Hacking | -11 -10 -10 -8 -8 -8 -6 -6 -6 -6 -6 --------- Run | Yrd Mat Sub Mat Sto Rec Fac Ext Cet Arc Hub Machines Accessed 46 | . 3 1 3 4 11 13 4 . . 7 Terminals 30 | . 3 . 1 2 6 7 4 . . 7 Fabricators 1 | . . . . . . 1 . . . . Repair Stations . | . . . . . . . . . . . Recycling Units 10 | . . . 2 2 4 2 . . . . Scanalyzers . | . . . . . . . . . . . Garrison Access 3 | . . . . . . 3 . . . . Total Hacks 104 | . 8 1 5 6 34 26 11 . . 13 Successful 50 | . 2 1 4 4 18 9 5 . . 7 Failed 53 | . 6 . 1 2 15 17 6 . . 6 Catastrophic 9 | . . . . 1 . 5 1 . . 2 Database Lockouts 1 | . . . . . 1 . . . . . Manual 58 | . 8 . 1 3 24 9 1 1 . 11 Terminals 76 | . 8 . 2 3 21 18 11 . . 13 Fabricators 2 | . . . . . . 2 . . . . Repair Stations . | . . . . . . . . . . . Recycling Units 20 | . . . 3 3 11 3 . . . . Scanalyzers . | . . . . . . . . . . . Garrison Access 3 | . . . . . . 3 . . . . Terminal Hacks 22 | . . 1 1 1 5 6 5 . . 3 Part Schematic 1 | . . . . . . . 1 . . . Robot Analysis 1 | . . . . . . . . . . 1 Prototype ID Bank 3 | . . . . . 3 . . . . . Open Door 3 | . . . . 1 . 1 1 . . . Level Access Points 1 | . . . . . . . . . . 1 Branch Access Points 2 | . . . 1 . . 1 . . . . Terminal Index 1 | . . . . . . . . . . 1 Alert Level 2 | . . . . . . 1 1 . . . Unreport Threat 2 | . . . . . . 1 1 . . . Locate Traps 1 | . . . . . . . 1 . . . Transport Status 1 | . . . . . . 1 . . . . Registered Components 1 | . . . . . . 1 . . . . Proto ID Catalog 1 | . . 1 . . . . . . . . Release Object 2 | . . . . . 2 . . . . . Fabricator Hacks . | . . . . . . . . . . . Repair Station Hacks . | . . . . . . . . . . . Recycling Unit Hacks 6 | . . . 3 1 2 . . . . . Retrieve Components 6 | . . . 3 1 2 . . . . . Scanalyzer . | . . . . . . . . . . . Garrison Access Hacks 2 | . . . . . . 2 . . . . Seal Access 2 | . . . . . . 2 . . . . Unauthorized Hacks 20 | . 2 . . 2 11 1 . . . 4 Terminals 16 | . 2 . . . 9 1 . . . 4 Botnet 5 | . . . . . 3 1 . . . 1 Skim 8 | . 2 . . . 6 . . . . . Sabotage 3 | . . . . . . . . . . 3 Fabricators . | . . . . . . . . . . . Repair Stations . | . . . . . . . . . . . Recycling Units 4 | . . . . 2 2 . . . . . Reject 1 | . . . . . 1 . . . . . Tunnel 3 | . . . . 2 1 . . . . . Scanalyzers . | . . . . . . . . . . . Garrison Access . | . . . . . . . . . . . Data Cores Recovered 1 | . 1 . . . . . . . . . Used . | . . . . . . . . . . . Hacking Detections 33 | . 3 . 3 2 7 11 2 . . 5 Full Trace Events 3 | . . . . . 2 1 . . . . Feedback Events . | . . . . . . . . . . . Feedback Blocked . | . . . . . . . . . . . Robot Schematics Acquired . | . . . . . . . . . . . Robots Built . | . . . . . . . . . . . Authchips . | . . . . . . . . . . . Time . | . . . . . . . . . . . Total Robot Build Rating . | . . . . . . . . . . . Part Schematics Acquired 1 | . . . . . . . 1 . . . Parts Built . | . . . . . . . . . . . Authchips . | . . . . . . . . . . . Time . | . . . . . . . . . . . Total Part Build Rating . | . . . . . . . . . . . Part Studies Acquired . | . . . . . . . . . . . Parts Repaired . | . . . . . . . . . . . Time . | . . . . . . . . . . . Parts Recycled . | . . . . . . . . . . . Recycled Matter . | . . . . . . . . . . . Retrieved Matter . | . . . . . . . . . . . Retrieved Components 30 | . . . 15 . 15 . . . . . Parts Scanalyzed . | . . . . . . . . . . . Part Schematics Acquired . | . . . . . . . . . . . Parts Damaged . | . . . . . . . . . . . Bothacking | -11 -10 -10 -8 -8 -8 -6 -6 -6 -6 -6 ------------ Run | Yrd Mat Sub Mat Sto Rec Fac Ext Cet Arc Hub Used RIF Installer . | . . . . . . . . . . . Robots Hacked . | . . . . . . . . . . . Non-combat . | . . . . . . . . . . . Combat . | . . . . . . . . . . . Robot Hacks Applied . | . . . . . . . . . . . Relay Couplers Released . | . . . . . . . . . . . Fabnet Peak Effective % . | . . . . . . . . . . . Robots Rewired 11 | . . . . . . . 11 . . . Allies Hacked . | . . . . . . . . . . . Hacks Repelled . | . . . . . . . . . . . Allies | -11 -10 -10 -8 -8 -8 -6 -6 -6 -6 -6 -------- Run | Yrd Mat Sub Mat Sto Rec Fac Ext Cet Arc Hub Total Allies 29 | . . . . . . . 24 5 . . Largest Group 15 | . . . . . . . 15 15 14 11 Highest-Rated Group 858 | . . . . . . . 545 858 699 627 Highest-Rated Ally 159 | . . . . . . . 159 159 96 96 Total Orders 6 | . . . . . . . . . 2 4 STAY 5 | . . . . . . . . . 1 4 FOLLOW 1 | . . . . . . . . . 1 . Ally Attacks 345 | . . . . . . . 158 55 6 126 Total Damage 9030 | . . . . . . . 3289 1380 159 4202 Kills 55 | . . . . . . . 17 8 1 29 Allies Corrupted 1 | . . . . . . . . . . 1 Allies Melted 1 | . . . . . . . . . . 1 Intel | -11 -10 -10 -8 -8 -8 -6 -6 -6 -6 -6 ------- Run | Yrd Mat Sub Mat Sto Rec Fac Ext Cet Arc Hub Active Infowar (turns) 12017 | 43 232 3995 614 314 1784 1974 1003 491 1551 16 Sensors 4460 | . . . . . . 1399 1003 491 1551 16 Terrain 3999 | 30 232 3737 . . . . . . . . Traps 2 | . . . . . . 2 . . . . Seismic 7807 | 43 232 3995 614 314 1784 825 . . . . Jamming 45 | . . . . . . 45 . . . . Robot Analysis Total 1 | . . . . . . . . . . 1 Derelict Logs Recovered 2 | . . 2 . . . . . . . . Drone Launches . | . . . . . . . . . . . Drone Recoveries . | . . . . . . . . . . . Exploration | -11 -10 -10 -8 -8 -8 -6 -6 -6 -6 -6 ------------- Run | Yrd Mat Sub Mat Sto Rec Fac Ext Cet Arc Hub Turns Passed 13083 | 135 232 3995 614 314 1787 1988 1072 493 1648 805 Spaces Moved 7444 | 58 119 1975 395 235 1308 1683 733 317 158 463 Core 25 | 9 . 10 6 . . . . . . . Treads 1469 | 49 119 1295 6 . . . . . . . Legs 3548 | . . . 298 235 1175 1683 157 . . . Wheels 61 | . . . 61 . . . . . . . Hover 1655 | . . 670 24 . 100 . . 240 158 463 Flight 686 | . . . . . 33 . 576 77 . . Fastest Speed 50 | 50 160 60 60 90 90 67 67 67 67 122 Average Speed 98 | 142 160 126 92 90 98 76 67 67 100 122 Slowest Speed 200 | 160 160 200 200 90 171 113 67 67 122 122 Overloaded Moves . | . . . . . . . . . . . Propulsion Burnouts . | . . . . . . . . . . . Robots Hopped 10 | . . . . . . . 10 . . . Potential Cave-ins . | . . . . . . . . . . . Cave-ins Triggered . | . . . . . . . . . . . Exploration Rate (%) 52 | 3 25 81 22 24 98 50 85 56 76 55 Regions Visited 10 Branch Regions 7 Pre-discovered Areas 8 | . . 2 . 2 4 . . . . . Known Exits Taken 5 | . . . 1 . . 1 1 1 1 . Unknown Exits Taken 5 | 1 1 1 . 1 1 . . . . . Scrap Searched 9 | . . 9 . . . . . . . . Spaces Dug 42 | . 2 2 11 . 3 8 13 . . 3 Terrain Destroyed 450 | . 2 2 89 9 18 73 38 3 22 194 Melee 9 | . . 2 7 . . . . . . . Projectile 171 | . 2 . . . 13 30 38 3 22 63 AOE 270 | . . . 82 9 5 43 . . . 131 Terrain Rammed . | . . . . . . . . . . . Walls Destroyed . | . . . . . . . . . . . Machines Disabled . | . . . . . . . . . . . Actions | -11 -10 -10 -8 -8 -8 -6 -6 -6 -6 -6 --------- Run | Yrd Mat Sub Mat Sto Rec Fac Ext Cet Arc Hub Total 12372 | 84 139 3393 547 305 1746 2189 1184 569 1611 605 Wait 3766 | . 3 1349 24 14 335 211 163 219 1409 39 Move 7417 | 57 118 1974 394 234 1307 1682 715 316 157 463 Hop 7 | . . . . . . . 7 . . . Pick Up 76 | 4 4 5 17 5 9 24 1 3 2 2 Fast Attach 36 | 7 . 2 11 4 1 6 1 . 3 1 Attach 22 | . . 3 6 . 2 9 . . . 2 Detach 15 | . . 1 1 . 8 5 . . . . Swap 70 | . 1 7 9 19 3 13 5 2 5 6 Drop 102 | 1 2 11 20 11 20 27 1 3 4 2 Fire 628 | 12 11 37 42 16 58 196 109 26 31 90 Melee 27 | . . 4 23 . . . . . . . Ram . | . . . . . . . . . . . Kick 19 | . . . . 2 3 14 . . . . Crush 3 | 3 . . . . . . . . . . Escape Stasis 47 | . . . . . . 2 45 . . . Rewire 137 | . . . . . . . 137 . . . Trap . | . . . . . . . . . . . Miscellaneous . | . . . . . . . . . . . Route ------- -11/Scrapyard -10/Materials (discovered 2 exits: [*Min] / *Sub) -10/Subcaves (discovered 2 exits: *Mat x2) -8/Materials (discovered 2 exits: *Sto x2) -8/Storage -8/Recycling -6/Factory (discovered 6 exits: *Fac x2 / *Low x2 / *Ext x2) -6/Extension (discovered 2 exits: *Fac / *Cet) -6/Cetus (discovered 2 exits: *Fac / *Arc) -6/Archives (discovered 2 exits: *Fac / *Hub) -6/Hub_04(d) (discovered 4 exits: *Fac x4) History --------- Turn | Location | Event 5 | -11/Scrapyard | Discovered new exit (range 16) 136 | -11/Scrapyard | Entered Materials 184 | -10/Materials | Discovered new exit (range 16) 307 | -10/Materials | Build established: Mutant 321 | -10/Materials | Discovered new exit (range 12) 368 | -10/Materials | Entered Subcaves 369 | -10/Subcaves | Approached by a straggling Scientist 778 | -10/Subcaves | Disturbed a concealed Subdweller 917 | -10/Subcaves | Discovered new exit (range 13) 1892 | -10/Subcaves | Learned location of Zion (-7) 1938 | -10/Subcaves | Learned location of Storage (-8) 4075 | -10/Subcaves | Discovered new exit (range 9) 4117 | -10/Subcaves | Visited 4L-MR0's lab 4129 | -10/Subcaves | Found Arachnoskeleton 4139 | -10/Subcaves | Core integrity fell below 50% 4363 | -10/Subcaves | Entered Materials 4363 | -8/Materials | Evolved 4 slots: Power x1, Propulsion x1, Utility x1, Weapon x1 4375 | -8/Materials | Identified exit to Storage 4497 | -8/Materials | Attached Arachnoskeleton, gained temporary slots: Propulsion x3 4977 | -8/Materials | Entered Storage 5229 | -8/Storage | Build established: Tank 5241 | -8/Storage | Used back door to open Recycling access 5241 | -8/Storage | Discovered new exit (range 5) 5291 | -8/Storage | Entered Recycling 5511 | -8/Recycling | Entered Scraplab 5523 | -8/Recycling | Found Prototype Device 5523 | -8/Recycling | Identified Scrap Engine 5883 | -8/Recycling | Build established: Mutant 5974 | -8/Recycling | Discovered new exit (range 15) 5979 | -8/Recycling | Learned Factory emergency access door positions 6037 | -8/Recycling | Learned location of 1 exit from Storage 6143 | -8/Recycling | Learned location of 1 exit from Storage 6157 | -8/Recycling | Learned location of Lower Caves (-6) 6179 | -8/Recycling | Learned Factory emergency access door positions 6536 | -8/Recycling | Build established: Construct 7078 | -8/Recycling | Entered Factory 7078 | -6/Factory | Evolved 4 slots: Propulsion x1, Utility x3 7079 | -6/Factory | Identified exit to Lower Caves 7302 | -6/Factory | Identified exit to Extension 7368 | -6/Factory | Build established: Mutant 7992 | -6/Factory | Build established: Construct 8478 | -6/Factory | First assault squad dispatched 8484 | -6/Factory | Discovered new exit (range 10) 8694 | -6/Factory | Discovered new exit (range 6) 8746 | -6/Factory | Identified exit to Factory 8976 | -6/Factory | Found Prototype Launcher 8976 | -6/Factory | Identified Rocket Array 9066 | -6/Factory | Entered Extension 9108 | -6/Extension | Rescued a captive Derelict 9109 | -6/Extension | Rescued a captive Derelict 9238 | -6/Extension | Rescued A7 9358 | -6/Extension | Rescued a captive Derelict 9408 | -6/Extension | Rescued a captive Derelict 9410 | -6/Extension | Rescued a captive Derelict 9505 | -6/Extension | Build established: Commander-Construct 9664 | -6/Extension | Spotted B-75 Beast 9677 | -6/Extension | Destroyed B-75 Beast 9684 | -6/Extension | Spotted B-75 Beast 9706 | -6/Extension | Destroyed B-75 Beast 9751 | -6/Extension | Rescued a captive Derelict 9757 | -6/Extension | Rescued a captive Derelict 9758 | -6/Extension | Rescued a captive Derelict 9791 | -6/Extension | Disrupted transfer network 9831 | -6/Extension | Rescued a captive Derelict 9833 | -6/Extension | Rescued a captive Derelict 9951 | -6/Extension | Rescued a captive Derelict 9953 | -6/Extension | Rescued a captive Derelict 9954 | -6/Extension | Lost 5 allies 10070 | -6/Extension | Discovered exit to Factory (range 10) 10071 | -6/Extension | Discovered new exit (range 6) 10083 | -6/Extension | Identified exit to Cetus 10138 | -6/Extension | Entered Cetus 10138 | -6/Cetus | Accompanied by 14 allies (A7) 10143 | -6/Cetus | Acquired a Cetus Manufacturing Module code from A7 10169 | -6/Cetus | Spotted Cetus Guard 10169 | -6/Cetus | Spotted Cetus Guard 10170 | -6/Cetus | Spotted Cetus Guard 10176 | -6/Cetus | Allies destroyed Cetus Guard 10179 | -6/Cetus | Core integrity fell below 50% 10189 | -6/Cetus | Allies destroyed Cetus Guard 10191 | -6/Cetus | Destroyed Cetus Guard 10209 | -6/Cetus | Lost 4 allies 10268 | -6/Cetus | Started Cetus Manufacturing Module 10277 | -6/Cetus | Discovered new exit (range 16) 10293 | -6/Cetus | Manufactured an Enhanced Grunt 10318 | -6/Cetus | Manufactured an Enhanced Grunt 10343 | -6/Cetus | Manufactured an Enhanced Grunt 10344 | -6/Cetus | Spotted Cetus Guard 10344 | -6/Cetus | Spotted Cetus Guard 10348 | -6/Cetus | Spotted Cetus Guard 10352 | -6/Cetus | Destroyed Cetus Guard 10356 | -6/Cetus | Spotted Cetus Guard 10364 | -6/Cetus | Allies destroyed Cetus Guard 10365 | -6/Cetus | Allies destroyed Cetus Guard 10368 | -6/Cetus | Manufactured an Enhanced Grunt 10370 | -6/Cetus | Allies destroyed Cetus Guard 10377 | -6/Cetus | Discovered exit to Factory (range 16) 10382 | -6/Cetus | Met Revision 17 10393 | -6/Cetus | Manufactured an Enhanced Grunt 10575 | -6/Cetus | Identified exit to Archives 10602 | -6/Cetus | Murdered A7 10605 | -6/Cetus | Extracted ID and sensor layout for unrecognized location from A7's data core 10631 | -6/Cetus | Entered Archives 10631 | -6/Archives | Accompanied by 14 allies 10666 | -6/Archives | Discovered exit to Factory (range 16) 10942 | -6/Archives | Discovered new exit (range 16) 10960 | -6/Archives | Identified exit to Hub_04(d) 12279 | -6/Archives | Entered Hub_04(d) 12279 | -6/Hub_04(d) | Accompanied by 11 allies 12439 | -6/Hub_04(d) | Discovered exit to Factory (range 9) 12974 | -6/Hub_04(d) | Network Hub disabled 12979 | -6/Hub_04(d) | First assault squad dispatched 12983 | -6/Hub_04(d) | Disrupted transfer network 13026 | -6/Hub_04(d) | Spotted Lightning 13029 | -6/Hub_04(d) | Spotted Lightning 13033 | -6/Hub_04(d) | Destroyed Lightning 13034 | -6/Hub_04(d) | Spotted Lightning 13041 | -6/Hub_04(d) | Network Hub disabled 13042 | -6/Hub_04(d) | Core integrity fell below 20% 13057 | -6/Hub_04(d) | System corruption reached 10% 13063 | -6/Hub_04(d) | Destroyed Lightning 13084 | -6/Hub_04(d) | Destroyed by Lightning with EMDS Last Messages --------------- 13074_ M-28 Smith system terminally corrupted. 13074_ Machine Analyzer fried. 13074_ Exp. Weapon Shielding destroyed. 13075_ Penetrated by EMDS Slug. 13075_ Slug penetrates B-48 Gladiator. 13075_ B-48 Gladiator suffers critical hit (Destroy). 13075_ B-48 Gladiator destroyed. 13075_ Destroyed Adv. Heat Sink. 13075_ G-50 Soldier knocked back. 13077_ Destroyed Lgt. Treads. 13078_ Hovering Aerolev-NPT Exoskeleton destroyed. 13078_ Hovering Aerolev-NPT Exoskeleton core remains intact and functional. 13079_ Slug penetrates G-50 Soldier. 13079_ G-50 Soldier destroyed. 13083_ Slug penetrates Wall. 13084_ 0JI&7OQOCPGV&RJTTXTQTJ0W8PIOEIU%%CLF 13084_ Penetrated by EMDS Slug. Map ----- +----------------------------------------------------+ | ???????????????????????#+###+####### * | | ???????????????????????+ ! | | ???????????????????????? !%!% | | ???????????????????????? ^*=^! ##### | | ?????????????????????###+##"#### !%!!! ##???? | | ?????????????????????# #!!!!!%!*########## | | ?????????????????????# ="%%%!!!%|+% =! | | ?????????????????????# !+/%[[!=!==! =%= | | ?????????????????????# []=!/*%! # " "!" " | | ?????????????????????# < *#%%##["### | | ?????????????????????# ! ]/==]####?########## | | ?????????????????????# ]=]##?????????????? | | ?????????????????????# ! "= #??????????????? | | ??????????????#??????##;;;; ##"# #??????????????? | | ??????????????;;####### ; ; ###%" #?????????? ??? | | ??????????????# " ###### " ?? | | ?????????????## ]! """ """"" ?? | | ?????????????#" * %!!* ?? | | ???????????? + %[ %/!%! " ?? | | ??????????????# =[= """""""""""" ?? | | ??????????????######; ;; ==#"#### "" ??? | | ???????????????? ; =%%]##??? "" ??? | | ??????????????"" """" ;=%[!###??? "" ???? | | ???????????????? """" %=%gm! #??? !! """""???? | | ???????????????? """" ==[hg*##??? *!] # ???? | | ?????????? """ *g%@b##???? *! #? ????? | | ?????????? =%;[[/=#?????? #??#????? | | ?????????? !# #?????? ! #???????? | | ??????????? " # #?????? #???????? | | ????????????"" ?#; ;#?????? #???????? | | ?????????????""" ?#; ; ?????? ?????????? | | ????????????? ??;; ;#???????""????????????? | | ????????????? ??!;; ; ?????????????????????? | | ?????????????######?";;; ; ?????????????????????? | | ????????????????????";;; ;;?????????????????????? | | ???????????????????" ????????????????????? | | ?????????????????? " ! ????????????????????? | | ?????????????????? ;! ????????????????????? | | ?????????????????? ; ????????????????????? | | ?????????????????? " ???????????????????? | | ????????????????????? ???????????????????? | | ??????????????????????? ?????????????????????? | | ?????????????????????????????????????????????????? | | ?????????????????????????????????????????????????? | | ?????????????????????????????????????????????????? | | ?????????????????????????????????????????????????? | | ?????????????????????????????????????????????????? | | ?????????????????????????????????????????????????? | | ?????????????????????????????????????????????????? | | ?????????????????????????????????????????????????? | +----------------------------------------------------+ Best States ------------- Heat Dissipation 90 Coolant Potential 65 Energy Generation 40 Energy Capacity 1617 Matter Stores 300 Matter Capacity 300 Sight Range 16 Robot Scan Range 16 Terrain Scan Range 16 Terrain Scan Density 10 Jamming Range 12 Weapon Shielding 90 Evasion (%) 61 Targeting Accuracy 8 Core Analysis 6 Recoil Reduction 2 Particle Charging 20 Offensive Hacking 26 Item Schematics ----------------- Hvy. Flak Cannon | -6/Extension | Hacked Robot Schematics ------------------ None Fabricated ------------ Nothing Repaired ---------- Nothing Studied --------- None Alien Tech Used ----------------- None Achievements -------------- None Challenges ------------ None Game ------ Seed OpticalSupercompositeLance Manual? 0 Play Time 01:52:45 Cumulative 719.4 hours Start 2026.04.26 @ 13:01:48 End 2026.04.28 @ 17:11:15 Sessions 4 Manual Loads 0 Difficulty Rogue Special Mode None Game No. 398 Rogue 398 Adventurer 0 Explorer 0 Win Type - Total 32 Types 15/2/6/2/1/1/1/2/1/1 Lore% 94 Gallery% 89 Achievement% 80 Wizard Run 0 Options --------- Layout 1 ASCII 0 Keyboard 0 Movement Numpad Keybinds 0 Fullscreen 2 Font 24/Smallcaps Map View 50x40 Zoom Use 1% Tactical HUD 1 Map Filters NONE Filters NONE Steam 1 RUN: 527141c3-2dea-4394-afbd-94ab9400ab0a